Cogmind - Beta 12 @@@ ROGUE MODE // 2023.04.12 @ 09:25:41 Player: btmk16 Result: Destroyed self with Mini Grenade Launcher Performance ------------- Evolutions (0) 0 Regions Visited (1) 200 Robots Destroyed (18) 90 Value Destroyed (329) 329 Prototype IDs (0) 0 Alien Tech Used (0) 0 Bonus (0) 0 TOTAL SCORE: 619 Bonus ------- None Cogmind --------- Core Integrity 0/250 Matter 280/300 Energy 240/250 System Corruption 0% Temperature Cool (0) Movement Core (300) Ox5 Location -10/Materials Parts ------- > --- POWER (1) -------- Ion Engine > --- PROPULSION (2) --- (None) > --- UTILITY (2) ------ Medium Storage Unit > --- WEAPON (2) ------- Mini Grenade Launcher > --- INVENTORY (10) --- Ion Engine Light Ion Engine Aluminum Leg Aluminum Leg Wheel Compact Wheel Compact Wheel Small Matter Pod (50) Medium Matter Pod (100) Peak State ------------ > --- POWER ------------ Ion Engine > --- PROPULSION ------- Light Treads Light Treads > --- UTILITY ---------- Medium Storage Unit Improved Terrain Scanner > --- WEAPON ----------- Medium Laser Light Assault Rifle > --- INVENTORY -------- Ion Engine Light Ion Engine Aluminum Leg Aluminum Leg Wheel Compact Wheel Compact Wheel Small Matter Pod Medium Matter Pod EM Pulse Gun [Rating: 10] Favorites ----------- Power Ion Engine Engine Ion Engine Propulsion Light Treads Treads Light Treads Utility Improved Terrain Scanner Device Improved Terrain Scanner Storage Medium Storage Unit Weapon Light Assault Rifle Energy Gun Medium Laser Ballistic Gun Light Assault Rifle Launcher Mini Grenade Launcher Build | -11 -10 ------- Run | Jun Mat Slots Evolved . | . . Power . | . . Propulsion . | . . Utility . | . . Weapon . | . . Parts Attached 12 | 8 4 Power 2 | 1 1 Engine 2 | 1 1 Core . | . . Reactor . | . . Propulsion 2 | 2 . Treads 2 | 2 . Leg . | . . Wheel . | . . Hover . | . . Flight . | . . Utility 3 | 2 1 Device 1 | 1 . Storage 2 | 1 1 Processor . | . . Hackware . | . . Protection . | . . Artifact . | . . Weapon 5 | 3 2 Energy Gun 3 | 2 1 Energy Cannon . | . . Ballistic Gun 1 | 1 . Ballistic Cannon . | . . Launcher 1 | . 1 Special Weapon . | . . Impact Weapon . | . . Slashing Weapon . | . . Piercing Weapon . | . . Special Melee Weapon . | . . Unidentified Prototypes . | . . Parts Lost 6 | . 6 Power . | . . Propulsion 2 | . 2 Utility 1 | . 1 Weapon 3 | . 3 Highest Loss Streak 6 | . 6 To Critical Strikes . | . . Average Slot Usage (%) 94 | . 94 Engine 14 | . 14 Treads 25 | . 25 Device 12 | . 12 Storage 14 | . 14 Energy Gun 13 | . 13 Ballistic Gun 13 | . 13 Naked Turns . | . . Heaviest Build 19 | 14 19 Greatest Support 40 | 40 40 Greatest Overweight (x) 4 | 1 4 Average Overweight (x) . | . . Largest Inventory Capacity 10 | 8 10 Average Capacity 9 | 7 9 Most Carried 10 | 8 10 Average Carried 8 | 4 8 Final Capacity 10 | 8 10 Final Carried 9 | 8 9 Class Distribution -------------------- 100% | Mutant Dominant Class ---------------- Mutant | -10/Materials Resources | -11 -10 ----------- Run | Jun Mat Matter Collected 488 | 336 152 Remotely . | . . Salvage Created 556 | 119 437 Parts 35 | 8 27 Haulers Intercepted . | . . Recyclers Shooed 1 | 1 . Parts Field Recycled . | . . Retrieved Matter . | . . Parts Self-Destructed . | . . Prevented . | . . Kills | -11 -10 ------- Run | Jun Mat Combat Hostiles Destroyed 13 | . 13 Guns 12 | . 12 AOE 1 | . 1 Classes Destroyed 6 | 3 3 Worker 2 | 1 1 Tunneler 1 | 1 . Recycler 1 | 1 . Watcher 1 | . 1 Swarmer 6 | . 6 Grunt 7 | . 7 Best Kill Streak 5 | 2 5 Combat Bots Only 4 | . 4 Max Kills in Single Turn 1 | 1 1 Gunslinging . | . . Exploded 1 | . 1 Melee . | . . Uniques/NPCs Destroyed . | . . Combat | -11 -10 -------- Run | Jun Mat Damage Taken 873 | . 873 Core 253 | . 253 Absorbed by Shields . | . . Core Remaining (%) 100 | 100 . Volleys Fired 56 | 6 50 Largest 2 | 2 2 Hottest 90 | 70 90 Shots Fired 107 | 12 95 Gun 106 | 12 94 Cannon . | . . Launcher 1 | . 1 Special . | . . Kinetic 49 | 6 43 Thermal 52 | 6 46 Explosive 1 | . 1 Electromagnetic 5 | . 5 Robot Hit Streak 9 | 3 9 Robot Miss Streak 5 | 2 5 Penetration Max . | . . Secondary Targets 3 | . 3 Max Gunslinging Chain 1 | . 1 Shots Hit Robots 62 | 6 56 Core Hits 30 | 5 25 Critical Kills . | . . Critical Parts Destroyed . | . . Critical Strikes 6 | 2 4 Burn 6 | 2 4 Melee Attacks . | . . Impact . | . . Slashing . | . . Piercing . | . . Sneak Attacks . | . . Combat Hostiles . | . . Follow-up Attacks . | . . Damage Inflicted 767 | 60 707 Guns 728 | 60 668 Cannons . | . . Explosions 38 | . 38 Melee . | . . Ramming 1 | . 1 Kinetic 253 | 22 231 Thermal 418 | 38 380 Explosive 38 | . 38 Electromagnetic 57 | . 57 Impact . | . . Slashing . | . . Piercing . | . . Highest Corruption . | . . Average Corruption . | . . Corruption Purged . | . . Corruption Blocked . | . . Overload Shots . | . . Overflow Damage . | . . Projectiles . | . . Explosions . | . . Melee . | . . Knockbacks . | . . Impact . | . . Kinetic . | . . Secondary . | . . Self-Inflicted Damage 26 | . 26 Shots 1 | . 1 Rammed 1 | . 1 Targets Rammed 1 | . 1 Kicked . | . . Crushed . | . . Highest Temperature 273 | 70 273 Average Temperature 93 | 30 100 Received Heat Transfer 297 | . 297 Effects 1 | . 1 Energy Bleed 1 | . 1 Siege Activations . | . . Robots Corrupted . | . . Combat Hostiles . | . . Parts Fried . | . . Impact Corruptions . | . . Robots Melted . | . . Combat Hostiles . | . . Parts Melted 5 | . 5 Heat Transferred 1628 | 259 1369 Parts Sabotaged . | . . Parts Stolen . | . . Parts Stripped . | . . Power Chain Reactions . | . . Missiles Intercepted . | . . Alert | -11 -10 ------- Run | Jun Mat Peak Influence 167 | 15 167 Initial 9 | . 9 Average 60 | 3 75 Maximum Alert Level . | . . Low Security (%) 100 | 100 100 Level 1 . | . . Level 2 . | . . Level 3 . | . . Level 4 . | . . Level 5 . | . . High Security . | . . Max Security . | . . Squads Dispatched 3 | . 3 Investigation . | . . Extermination . | . . Reinforcement 3 | . 3 Assault . | . . Garrison . | . . Intercept . | . . Searches Triggered . | . . Construction Impeded . | . . Haulers Reinforced . | . . Active Scanning Responses . | . . Cargo Convoy Interrupts . | . . Stealth | -11 -10 --------- Run | Jun Mat Distress Signals 2 | . 2 Communications Jammed . | . . Distress Signals . | . . Times Spotted 20 | . 20 Peak Tracking Total 5 | . 5 Tactical Retreats 2 | . 2 Traps | -11 -10 ------- Run | Jun Mat Traps Triggered . | . . Indirectly . | . . Trap Hack Attempts . | . . Triggered . | . . Disarmed . | . . Reprogrammed . | . . Reused . | . . Traps Extracted . | . . Installed . | . . Triggered . | . . Machines | -11 -10 ---------- Run | Jun Mat Machines Disabled . | . . Max in Single Turn . | . . Machines Repaired . | . . Machines Sabotaged . | . . Overloaded Fab Kills . | . . Hacking | -11 -10 --------- Run | Jun Mat Machines Accessed 2 | . 2 Terminals 2 | . 2 Fabricators . | . . Repair Stations . | . . Recycling Units . | . . Scanalyzers . | . . Garrison Access . | . . Total Hacks 6 | . 6 Successful 3 | . 3 Failed 3 | . 3 Catastrophic . | . . Database Lockouts . | . . Manual 4 | . 4 Terminals 6 | . 6 Fabricators . | . . Repair Stations . | . . Recycling Units . | . . Scanalyzers . | . . Garrison Access . | . . Terminal Hacks 3 | . 3 Robot Analysis 1 | . 1 Locate Traps 2 | . 2 Fabricator Hacks . | . . Repair Station Hacks . | . . Recycling Unit Hacks . | . . Scanalyzer . | . . Garrison Access Hacks . | . . Unauthorized Hacks . | . . Terminals . | . . Fabricators . | . . Repair Stations . | . . Recycling Units . | . . Scanalyzers . | . . Garrison Access . | . . Data Cores Recovered . | . . Used . | . . Hacking Detections 2 | . 2 Full Trace Events . | . . Feedback Events . | . . Feedback Blocked . | . . Robot Schematics Acquired . | . . Robots Built . | . . Authchips . | . . Time . | . . Total Robot Build Rating . | . . Part Schematics Acquired . | . . Parts Built . | . . Authchips . | . . Time . | . . Total Part Build Rating . | . . Parts Repaired . | . . Time . | . . Parts Recycled . | . . Recycled Matter . | . . Retrieved Matter . | . . Retrieved Components . | . . Parts Scanalyzed . | . . Part Schematics Acquired . | . . Parts Damaged . | . . Bothacking | -11 -10 ------------ Run | Jun Mat Used RIF Installer . | . . Robots Hacked . | . . Non-combat . | . . Combat . | . . Robot Hacks Applied . | . . Relay Couplers Released . | . . Fabnet Peak Effective % . | . . Robots Rewired . | . . Allies Hacked . | . . Hacks Repelled . | . . Allies | -11 -10 -------- Run | Jun Mat Total Allies . | . . Largest Group . | . . Highest-Rated Group . | . . Highest-Rated Ally . | . . Total Orders . | . . Ally Attacks . | . . Total Damage . | . . Kills . | . . Allies Corrupted . | . . Allies Melted . | . . Intel | -11 -10 ------- Run | Jun Mat Robot Analysis Total 1 | . 1 Derelict Logs Recovered . | . . Drone Launches . | . . Drone Recoveries . | . . Exploration | -11 -10 ------------- Run | Jun Mat Turns Passed 664 | 137 527 Spaces Moved 288 | 65 223 Core 9 | 3 6 Treads 279 | 62 217 Legs . | . . Wheels . | . . Hover . | . . Flight . | . . Fastest Speed 50 | 50 160 Average Speed 161 | 156 162 Slowest Speed 250 | 160 250 Overloaded Moves . | . . Propulsion Burnouts . | . . Robots Hopped . | . . Cave-ins Triggered . | . . Exploration Rate (%) 32 | 4 60 Regions Visited 1 Branch Regions . Pre-discovered Areas . | . . Known Exits Taken . | . . Unknown Exits Taken 1 | 1 . Scrap Searched . | . . Spaces Dug . | . . Terrain Destroyed 8 | . 8 Melee . | . . Projectile . | . . AOE 8 | . 8 Terrain Rammed . | . . Walls Destroyed . | . . Machines Disabled . | . . Actions | -11 -10 --------- Run | Jun Mat Total 387 | 86 301 Wait 21 | . 21 Move 287 | 64 223 Hop . | . . Pick Up 9 | 8 1 Fast Attach 8 | 7 1 Attach 1 | . 1 Detach . | . . Swap 3 | 1 2 Drop 1 | . 1 Fire 56 | 6 50 Melee . | . . Ram 1 | . 1 Kick . | . . Crush . | . . Escape Stasis . | . . Rewire . | . . Trap . | . . Miscellaneous . | . . Route ------- -11/Junkyard -10/Materials (discovered 2 exits: [*Mat] / [*Min]) History --------- Turn | Location | Event 27 | -11/Junkyard | Discovered new exit (range 15) 138 | -11/Junkyard | Entered Materials 309 | -10/Materials | Build established: Mutant 468 | -10/Materials | Discovered new exit (range 10) 620 | -10/Materials | Core integrity fell below 50% 646 | -10/Materials | Core integrity fell below 20% 659 | -10/Materials | Discovered new exit (range 7) 665 | -10/Materials | Destroyed self with Mini Grenade Launcher Last Messages --------------- 00605_ G-34 Mercenary destroyed. 00607_ Acquired 15 matter. 00618_ R-06 Scavenger collects Aluminum Leg. 00623_ G-34 Mercenary destroyed. 00623_ Switching to secondary target: G-34 Mercenary. 00623_ Lgt. Treads destroyed. 00625_ G-34 Mercenary suffers critical hit (Burn). 00626_ Lgt. Treads destroyed. 00631_ Lgt. Assault Rifle destroyed. 00634_ G-34 Mercenary heat spikes uncontrollably. 00634_ G-34 Mercenary overheating. 00634_ Aluminum Leg melted. 00634_ G-34 Mercenary destroyed. 00639_ Med. Laser destroyed. 00642_ Overheating: Energy bleed (-60). 00646_ EM Pulse Gun destroyed. 00654_ Slammed into U-05 Engineer. 00659_ EXIT=FOUND 00664_ Acquired Mni. Grenade Launcher. 00665_ G-34 Mercenary destroyed. Map ----- +----------------------------------------------------+ | ######## #????????????? | | ##+## ## #????????????? | | ## #????????????? | | ## #????????????? | | ## #?#??????????? | | ##+## ## #????????????? | | ## ### #???????#????? | | ## #?# #?#??##??#?### | | ## #?# #????# ??? # | | ## #?# #??#?# # | | ## ### ##???# # | | # ## ###### """ # | | # # """ # | | + + """ # | | # %= # # | | # ##/###### # "" # | | #######[% ] ## # T" # | | #####?????# ## #!% "" # | | ?????????#""" !## #*%[= # | | ??????????#""" =%## ## ####?? | | ? ????????#""" %+ !%=#????? | | ????"??? ?# [ #### ????? | | ??? ??? ?########?## % ##### | | ?##+###?????##????## [ [[#? | | # #####??????#### [[#? | | ^ @]#? | | ^ = < ]]#? | | ^ %* ]]#? | | # ##??#### ]]#? | | #???### ??? + #####? | | #?????? ???" ######### #????? | | #????????????????????# ?????? | | #????#??? ???????????# ?????? | | #????????????????????# ?????? | | ##??#????????????????# ?????? | | #???????????????????? ?????? | | ?????????????????????##?????? | | ?#??#???????????????????????? | | ????????????????????????????? | | ???????#????????????????????? | | ????????????????????????????? | | ?????#??????????????????????? | | | | | | | | | | | | | | | | | +----------------------------------------------------+ Best States ------------- Heat Dissipation 25 Energy Generation 10 Energy Capacity 250 Matter Stores 300 Matter Capacity 300 Sight Range 16 Terrain Scan Range 16 Terrain Scan Density 10 Evasion (%) 40 Recoil Reduction 2 Item Schematics ----------------- None Robot Schematics ------------------ None Fabricated ------------ Nothing Alien Tech Used ----------------- None Achievements -------------- None Challenges ------------ None Game ------ Seed SignalActiveExoskeleton Manual? 0 Play Time 00:07:24 Cumulative 639.1 hours Start 2023.04.11 @ 17:35:42 End 2023.04.12 @ 09:25:41 Sessions 1 Manual Loads 0 Difficulty Rogue Special Mode None Game No. 648 Rogue 647 Adventurer 0 Explorer 1 Win Type - Total 30 Types 21/0/6/3/0/0/0/0/0 Lore% 84 Gallery% 92 Achievement% 78 Wizard Run 0 Options --------- ASCII 0 Keyboard 1 Movement Vi Keybinds 0 Fullscreen 1 Font 18/SmallcapsGlow Map View 76x50 Tactical HUD 1 Map Filters NONE Filters NONE Steam 1 RUN: f61b6316-7847-4556-8d6b-f33dd69f7947